[Event "Titled Tuesday Blitz July 11 Early 2023"]
[White "Tang, Andrew"]
[Black "Narayanan.S.L"]
[WhiteFideId "2059630"]
[BlackFideId "5058422"]
[WhiteElo "2913"]
[BlackElo "3036"]
[Result "1/2-1/2"]
[Round "6"]
[TimeControl "180+2"]
[Date "2023.07.11"]
[WhiteClock "0:00:07"]
[BlackClock "0:00:20"]
[Board "5"]

1. d4 {[%clk 0:03:00]}  Nf6 {[%clk 0:02:57]} 2. Nf3 {[%clk 0:03:01]}  c5 {[%clk 0:02:57]} 3. d5 {[%clk 0:02:57]}  e6 {[%clk 0:02:57]} 4. c4 {[%clk 0:02:57]}  exd5 {[%clk 0:02:57]} 5. cxd5 {[%clk 0:02:58]}  d6 {[%clk 0:02:57]} 6. Nc3 {[%clk 0:02:59]}  g6 {[%clk 0:02:57]} 7. e4 {[%clk 0:02:59]}  Bg7 {[%clk 0:02:57]} 8. h3 {[%clk 0:03:00]}  O-O {[%clk 0:02:57]} 9. Bd3 {[%clk 0:03:01]}  Re8 {[%clk 0:02:55]} 10. O-O {[%clk 0:03:01]}  Nbd7 {[%clk 0:02:55]} 11. Bf4 {[%clk 0:02:43]}  c4 {[%clk 0:02:54]} 12. Bc2 {[%clk 0:02:32]}  Ne5 {[%clk 0:02:49]} 13. Nxe5 {[%clk 0:01:54]}  dxe5 {[%clk 0:02:48]} 14. Bg5 {[%clk 0:01:54]}  h6 {[%clk 0:02:43]} 15. Bh4 {[%clk 0:01:54]}  g5 {[%clk 0:02:42]} 16. Bg3 {[%clk 0:01:54]}  Bd7 {[%clk 0:02:41]} 17. a4 {[%clk 0:01:52]}  b6 {[%clk 0:02:37]} 18. Qf3 {[%clk 0:01:45]}  a6 {[%clk 0:02:36]} 19. Nd1 {[%clk 0:01:38]}  b5 {[%clk 0:02:33]} 20. Ne3 {[%clk 0:01:38]}  Qe7 {[%clk 0:02:17]} 21. Qe2 {[%clk 0:00:51]}  Rec8 {[%clk 0:02:15]} 22. Rfd1 {[%clk 0:00:50]}  Qd6 {[%clk 0:02:11]} 23. Qd2 {[%clk 0:00:44]}  Ne8 {[%clk 0:01:49]} 24. h4 {[%clk 0:00:43]}  f6 {[%clk 0:01:39]} 25. f3 {[%clk 0:00:42]}  Bf8 {[%clk 0:01:38]} 26. Bf2 {[%clk 0:00:41]}  Qb4 {[%clk 0:01:36]} 27. Qc1 {[%clk 0:00:31]}  Bc5 {[%clk 0:01:31]} 28. Be1 {[%clk 0:00:28]}  Bxe3+ {[%clk 0:01:30]} 29. Qxe3 {[%clk 0:00:29]}  Qc5 {[%clk 0:01:30]} 30. Qxc5 {[%clk 0:00:25]}  Rxc5 {[%clk 0:01:31]} 31. Bb4 {[%clk 0:00:26]}  Rcc8 {[%clk 0:01:31]} 32. axb5 {[%clk 0:00:26]}  axb5 {[%clk 0:01:31]} 33. Kf2 {[%clk 0:00:24]}  Kg7 {[%clk 0:01:28]} 34. Ke3 {[%clk 0:00:23]}  Nc7 {[%clk 0:01:27]} 35. Bd6 {[%clk 0:00:20]}  Ne8 {[%clk 0:01:25]} 36. Bb4 {[%clk 0:00:21]}  Nc7 {[%clk 0:01:25]} 37. Rh1 {[%clk 0:00:16]}  Rxa1 {[%clk 0:01:10]} 38. Rxa1 {[%clk 0:00:17]}  Ra8 {[%clk 0:01:10]} 39. Rxa8 {[%clk 0:00:15]}  Nxa8 {[%clk 0:01:11]} 40. hxg5 {[%clk 0:00:16]}  hxg5 {[%clk 0:01:11]} 41. Ba5 {[%clk 0:00:16]}  Kf7 {[%clk 0:01:11]} 42. Bd8 {[%clk 0:00:17]}  b4 {[%clk 0:01:09]} 43. Bd1 {[%clk 0:00:16]}  f5 {[%clk 0:00:44]} 44. Bxg5 {[%clk 0:00:15]}  f4+ {[%clk 0:00:44]} 45. Kd2 {[%clk 0:00:15]}  Nb6 {[%clk 0:00:42]} 46. Bd8 {[%clk 0:00:16]}  Na4 {[%clk 0:00:42]} 47. Kc1 {[%clk 0:00:07]}  b3 {[%clk 0:00:36]} 48. Ba5 {[%clk 0:00:07]}  Bb5 {[%clk 0:00:35]} 49. Be2 {[%clk 0:00:07]}  Nc5 {[%clk 0:00:31]} 50. Bc7 {[%clk 0:00:06]}  Kf6 {[%clk 0:00:30]} 51. Kd2 {[%clk 0:00:07]}  Na4 {[%clk 0:00:30]} 52. Kc1 {[%clk 0:00:06]}  Nc5 {[%clk 0:00:31]} 53. Bb6 {[%clk 0:00:06]}  Na4 {[%clk 0:00:28]} 54. Bf2 {[%clk 0:00:05]}  Nxb2 {[%clk 0:00:22]} 55. Kxb2 {[%clk 0:00:03]}  c3+ {[%clk 0:00:23]} 56. Kxb3 {[%clk 0:00:03]}  Bxe2 {[%clk 0:00:24]} 57. Kxc3 {[%clk 0:00:04]}  Bf1 {[%clk 0:00:24]} 58. g3 {[%clk 0:00:04]}  fxg3 {[%clk 0:00:22]} 59. Bxg3 {[%clk 0:00:05]}  Bg2 {[%clk 0:00:22]} 60. Bh4+ {[%clk 0:00:03]}  Kf7 {[%clk 0:00:22]} 61. f4 {[%clk 0:00:03]}  Bxe4 {[%clk 0:00:22]} 62. d6 {[%clk 0:00:03]}  Ke6 {[%clk 0:00:20]} 63. fxe5 {[%clk 0:00:04]}  Bc6 {[%clk 0:00:20]} 64. Kd4 {[%clk 0:00:05]}  Bd7 {[%clk 0:00:21]} 65. Bf6 {[%clk 0:00:05]}  Be8 {[%clk 0:00:21]} 66. Kc5 {[%clk 0:00:06]}  Bd7 {[%clk 0:00:20]} 67. Kb6 {[%clk 0:00:07]} 1/2-1/2


[Site "https://www.chess.com"]

[Event "Titled Tuesday Blitz July 11 Early 2023"]
[White "Molina, Roberto Junio Brito"]
[Black "Aravindh, Chithambaram VR."]
[WhiteFideId "2109450"]
[BlackFideId "5072786"]
[WhiteElo "2855"]
[BlackElo "2933"]
[Result "0-1"]
[Round "6"]
[TimeControl "180+2"]
[Date "2023.07.11"]
[WhiteClock "0:02:11"]
[BlackClock "0:02:15"]
[Board "6"]

1. d4 {[%clk 0:03:00]}  Nf6 {[%clk 0:02:53]} 2. c4 {[%clk 0:03:00]}  b6 {[%clk 0:02:52]} 3. Nc3 {[%clk 0:02:59]}  Bb7 {[%clk 0:02:52]} 4. f3 {[%clk 0:02:57]}  d5 {[%clk 0:02:51]} 5. cxd5 {[%clk 0:02:56]}  Nxd5 {[%clk 0:02:52]} 6. e4 {[%clk 0:02:56]}  Nxc3 {[%clk 0:02:52]} 7. bxc3 {[%clk 0:02:57]}  e6 {[%clk 0:02:50]} 8. Bb5+ {[%clk 0:02:54]}  c6 {[%clk 0:02:50]} 9. Bd3 {[%clk 0:02:53]}  c5 {[%clk 0:02:49]} 10. Ne2 {[%clk 0:02:52]}  cxd4 {[%clk 0:02:48]} 11. cxd4 {[%clk 0:02:52]}  Bb4+ {[%clk 0:02:47]} 12. Bd2 {[%clk 0:02:51]}  Bxd2+ {[%clk 0:02:47]} 13. Qxd2 {[%clk 0:02:52]}  O-O {[%clk 0:02:47]} 14. O-O {[%clk 0:02:52]}  Nc6 {[%clk 0:02:48]} 15. Qe3 {[%clk 0:02:47]}  Nb4 {[%clk 0:02:48]} 16. Rfd1 {[%clk 0:02:46]}  Rc8 {[%clk 0:02:44]} 17. a3 {[%clk 0:02:44]}  Nc2 {[%clk 0:02:41]} 18. Bxc2 {[%clk 0:02:43]}  Rxc2 {[%clk 0:02:42]} 19. Rac1 {[%clk 0:02:39]}  Rxc1 {[%clk 0:02:35]} 20. Rxc1 {[%clk 0:02:39]}  Qd6 {[%clk 0:02:36]} 21. Nc3 {[%clk 0:02:30]}  Qxa3 {[%clk 0:02:34]} 22. Kf2 {[%clk 0:02:30]}  Rc8 {[%clk 0:02:30]} 23. d5 {[%clk 0:02:23]}  exd5 {[%clk 0:02:25]} 24. exd5 {[%clk 0:02:24]}  Bxd5 {[%clk 0:02:17]} 25. Nxd5 {[%clk 0:02:11]}  Qxe3+ {[%clk 0:02:15]} 0-1


[Site "https://www.chess.com"]

[Event "Titled Tuesday Blitz July 11 Early 2023"]
[White "Bazeev, German"]
[Black "Shimanov, Aleksandr"]
[WhiteFideId "24119350"]
[BlackFideId "4198603"]
[WhiteElo "2802"]
[BlackElo "2922"]
[Result "0-1"]
[Round "6"]
[TimeControl "180+2"]
[Date "2023.07.11"]
[WhiteClock "0:00:01"]
[BlackClock "0:00:07"]
[Board "7"]

1. d4 {[%clk 0:03:00]}  Nf6 {[%clk 0:02:52]} 2. Nf3 {[%clk 0:03:01]}  g6 {[%clk 0:02:52]} 3. c4 {[%clk 0:03:01]}  Bg7 {[%clk 0:02:52]} 4. Nc3 {[%clk 0:03:02]}  d6 {[%clk 0:02:52]} 5. Bg5 {[%clk 0:03:02]}  h6 {[%clk 0:02:51]} 6. Bh4 {[%clk 0:03:02]}  g5 {[%clk 0:02:52]} 7. Bg3 {[%clk 0:03:02]}  Nh5 {[%clk 0:02:52]} 8. e3 {[%clk 0:03:01]}  Nd7 {[%clk 0:02:51]} 9. Qc2 {[%clk 0:03:02]}  e6 {[%clk 0:02:52]} 10. Be2 {[%clk 0:02:59]}  a6 {[%clk 0:02:50]} 11. Nd2 {[%clk 0:02:59]}  Ndf6 {[%clk 0:02:41]} 12. O-O-O {[%clk 0:02:38]}  Qe7 {[%clk 0:02:37]} 13. Kb1 {[%clk 0:02:34]}  Bd7 {[%clk 0:02:31]} 14. Bf3 {[%clk 0:02:29]}  Rb8 {[%clk 0:02:28]} 15. Nce4 {[%clk 0:02:24]}  Nxg3 {[%clk 0:02:27]} 16. Nxf6+ {[%clk 0:02:22]}  Bxf6 {[%clk 0:02:25]} 17. hxg3 {[%clk 0:02:23]}  Bg7 {[%clk 0:02:20]} 18. g4 {[%clk 0:02:17]}  O-O {[%clk 0:02:02]} 19. Ne4 {[%clk 0:02:12]}  b5 {[%clk 0:01:48]} 20. c5 {[%clk 0:02:12]}  b4 {[%clk 0:01:48]} 21. c6 {[%clk 0:01:47]}  Bc8 {[%clk 0:01:44]} 22. Qd3 {[%clk 0:01:40]}  a5 {[%clk 0:01:28]} 23. Rc1 {[%clk 0:01:39]}  Rb6 {[%clk 0:01:26]} 24. Ng3 {[%clk 0:01:36]}  Ba6 {[%clk 0:01:26]} 25. Qd2 {[%clk 0:01:35]}  a4 {[%clk 0:01:23]} 26. Be4 {[%clk 0:01:31]}  d5 {[%clk 0:01:22]} 27. Bd3 {[%clk 0:01:30]}  Bxd3+ {[%clk 0:01:16]} 28. Qxd3 {[%clk 0:01:31]}  Qd6 {[%clk 0:01:17]} 29. f4 {[%clk 0:01:13]}  gxf4 {[%clk 0:01:06]} 30. Nh5 {[%clk 0:01:08]}  e5 {[%clk 0:01:01]} 31. Nxg7 {[%clk 0:00:58]}  Kxg7 {[%clk 0:01:01]} 32. g5 {[%clk 0:00:59]}  e4 {[%clk 0:00:55]} 33. gxh6+ {[%clk 0:00:55]}  Kh7 {[%clk 0:00:55]} 34. Qf1 {[%clk 0:00:51]}  b3 {[%clk 0:00:44]} 35. a3 {[%clk 0:00:43]}  Rg8 {[%clk 0:00:42]} 36. Rh4 {[%clk 0:00:39]}  f6 {[%clk 0:00:29]} 37. Rxf4 {[%clk 0:00:38]}  Rg6 {[%clk 0:00:30]} 38. g4 {[%clk 0:00:34]}  Rxc6 {[%clk 0:00:30]} 39. Rxc6 {[%clk 0:00:30]}  Qxc6 {[%clk 0:00:31]} 40. Qc1 {[%clk 0:00:09]}  Qxc1+ {[%clk 0:00:30]} 41. Kxc1 {[%clk 0:00:10]}  Rxh6 {[%clk 0:00:29]} 42. Kd2 {[%clk 0:00:10]}  Rh2+ {[%clk 0:00:29]} 43. Kc3 {[%clk 0:00:09]}  Rc2+ {[%clk 0:00:28]} 44. Kb4 {[%clk 0:00:10]}  Kg6 {[%clk 0:00:17]} 45. Kxa4 {[%clk 0:00:10]}  Rxb2 {[%clk 0:00:18]} 46. Kb4 {[%clk 0:00:10]}  Re2 {[%clk 0:00:15]} 47. a4 {[%clk 0:00:07]}  Rxe3 {[%clk 0:00:12]} 48. Rf1 {[%clk 0:00:06]}  Rd3 {[%clk 0:00:07]} 49. Kc5 {[%clk 0:00:06]}  Rc3+ {[%clk 0:00:07]} 50. Kxd5 {[%clk 0:00:05]}  e3 {[%clk 0:00:07]} 51. Ke4 {[%clk 0:00:03]}  e2 {[%clk 0:00:07]} 52. Rb1 {[%clk 0:00:01]}  b2 {[%clk 0:00:07]} 0-1


[Site "https://www.chess.com"]

[Event "Titled Tuesday Blitz July 11 Early 2023"]
[White "Nihal Sarin"]
[Black "Concio, Michael Jr."]
[WhiteFideId "25092340"]
[BlackFideId "5217873"]
[WhiteElo "3033"]
[BlackElo "2757"]
[Result "1-0"]
[Round "6"]
[TimeControl "180+2"]
[Date "2023.07.11"]
[WhiteClock "0:00:58"]
[BlackClock "0:00:04"]
[Board "10"]

1. e4 {[%clk 0:02:55]}  e5 {[%clk 0:02:59]} 2. Nc3 {[%clk 0:02:54]}  Nc6 {[%clk 0:03:00]} 3. Bc4 {[%clk 0:02:53]}  Bc5 {[%clk 0:02:57]} 4. d3 {[%clk 0:02:53]}  d6 {[%clk 0:02:53]} 5. Nf3 {[%clk 0:02:52]}  Nf6 {[%clk 0:02:53]} 6. Bg5 {[%clk 0:02:52]}  h6 {[%clk 0:02:52]} 7. Bxf6 {[%clk 0:02:53]}  Qxf6 {[%clk 0:02:50]} 8. Nd5 {[%clk 0:02:54]}  Qd8 {[%clk 0:02:49]} 9. c3 {[%clk 0:02:54]}  a6 {[%clk 0:02:46]} 10. d4 {[%clk 0:02:54]}  Ba7 {[%clk 0:02:45]} 11. dxe5 {[%clk 0:02:55]}  Nxe5 {[%clk 0:02:41]} 12. Nxe5 {[%clk 0:02:55]}  dxe5 {[%clk 0:02:41]} 13. Qh5 {[%clk 0:02:56]}  O-O {[%clk 0:02:41]} 14. Qxe5 {[%clk 0:02:55]}  Re8 {[%clk 0:02:31]} 15. Qf4 {[%clk 0:02:53]}  Be6 {[%clk 0:02:25]} 16. O-O-O {[%clk 0:02:47]}  Qg5 {[%clk 0:02:16]} 17. Qxg5 {[%clk 0:02:29]}  hxg5 {[%clk 0:02:16]} 18. Bb3 {[%clk 0:02:30]}  Bxd5 {[%clk 0:00:59]} 19. Bxd5 {[%clk 0:02:17]}  c6 {[%clk 0:00:58]} 20. Bb3 {[%clk 0:02:17]}  Rad8 {[%clk 0:00:57]} 21. f3 {[%clk 0:02:16]}  Bb6 {[%clk 0:00:55]} 22. Kc2 {[%clk 0:02:16]}  Kf8 {[%clk 0:00:54]} 23. Bc4 {[%clk 0:02:11]}  Rxd1 {[%clk 0:00:51]} 24. Rxd1 {[%clk 0:02:12]}  Rd8 {[%clk 0:00:52]} 25. Re1 {[%clk 0:02:12]}  Ke7 {[%clk 0:00:49]} 26. b4 {[%clk 0:02:12]}  Bc7 {[%clk 0:00:46]} 27. g3 {[%clk 0:02:08]}  a5 {[%clk 0:00:35]} 28. b5 {[%clk 0:02:05]}  cxb5 {[%clk 0:00:32]} 29. Bxb5 {[%clk 0:02:06]}  Bd6 {[%clk 0:00:30]} 30. Bc4 {[%clk 0:02:04]}  Bc5 {[%clk 0:00:28]} 31. Bd5 {[%clk 0:02:03]}  b6 {[%clk 0:00:28]} 32. Kd3 {[%clk 0:01:57]}  Rc8 {[%clk 0:00:26]} 33. Re2 {[%clk 0:01:55]}  Bg1 {[%clk 0:00:22]} 34. a4 {[%clk 0:01:53]}  Bc5 {[%clk 0:00:22]} 35. e5 {[%clk 0:01:44]}  Rc7 {[%clk 0:00:19]} 36. f4 {[%clk 0:01:41]}  gxf4 {[%clk 0:00:20]} 37. gxf4 {[%clk 0:01:42]}  g6 {[%clk 0:00:21]} 38. h4 {[%clk 0:01:31]}  Rc8 {[%clk 0:00:20]} 39. Ke4 {[%clk 0:01:32]}  Rh8 {[%clk 0:00:19]} 40. Rh2 {[%clk 0:01:32]}  Bg1 {[%clk 0:00:19]} 41. Rh1 {[%clk 0:01:24]}  Bf2 {[%clk 0:00:19]} 42. Kf3 {[%clk 0:01:25]}  Bc5 {[%clk 0:00:14]} 43. c4 {[%clk 0:01:25]}  Bb4 {[%clk 0:00:09]} 44. Kg4 {[%clk 0:01:25]}  Bc5 {[%clk 0:00:08]} 45. Rh2 {[%clk 0:01:18]}  Bg1 {[%clk 0:00:08]} 46. Re2 {[%clk 0:01:16]}  Bd4 {[%clk 0:00:06]} 47. Rh2 {[%clk 0:01:09]}  Bg1 {[%clk 0:00:07]} 48. Rh1 {[%clk 0:01:09]}  Bc5 {[%clk 0:00:06]} 49. Rf1 {[%clk 0:00:59]}  Be3 {[%clk 0:00:04]} 50. f5 {[%clk 0:00:57]}  gxf5+ {[%clk 0:00:05]} 51. Rxf5 {[%clk 0:00:58]}  Rg8+ {[%clk 0:00:05]} 52. Kf3 {[%clk 0:00:58]}  Bd4 {[%clk 0:00:05]} 53. Rxf7+ {[%clk 0:00:59]}  Ke8 {[%clk 0:00:05]} 54. e6 {[%clk 0:00:58]}  Rg1 {[%clk 0:00:04]} 55. Bc6+ {[%clk 0:00:58]} 1-0


[Site "https://www.chess.com"]

[Event "Titled Tuesday Blitz July 11 Early 2023"]
[White "Mahdavi, Reza"]
[Black "Movahed, Sina"]
[WhiteFideId "12595926"]
[BlackFideId "42520835"]
[WhiteElo "2750"]
[BlackElo "3013"]
[Result "1-0"]
[Round "6"]
[TimeControl "180+2"]
[Date "2023.07.11"]
[WhiteClock "0:00:21"]
[BlackClock "0:00:07"]
[Board "11"]

1. e4 {[%clk 0:03:00]}  c5 {[%clk 0:02:59]} 2. Nf3 {[%clk 0:03:01]}  d6 {[%clk 0:03:00]} 3. d4 {[%clk 0:03:01]}  cxd4 {[%clk 0:03:01]} 4. Qxd4 {[%clk 0:03:01]}  Nc6 {[%clk 0:03:00]} 5. Bb5 {[%clk 0:03:02]}  Bd7 {[%clk 0:03:01]} 6. Bxc6 {[%clk 0:03:03]}  Bxc6 {[%clk 0:03:01]} 7. Nc3 {[%clk 0:03:04]}  Nf6 {[%clk 0:03:01]} 8. Bg5 {[%clk 0:03:04]}  e6 {[%clk 0:03:02]} 9. O-O-O {[%clk 0:03:03]}  Be7 {[%clk 0:03:02]} 10. Qd3 {[%clk 0:03:04]}  h6 {[%clk 0:03:02]} 11. Bd2 {[%clk 0:02:53]}  Ng4 {[%clk 0:02:57]} 12. Qe2 {[%clk 0:02:46]}  Qc7 {[%clk 0:02:54]} 13. Nd4 {[%clk 0:02:43]}  Nf6 {[%clk 0:02:54]} 14. f3 {[%clk 0:02:36]}  Rc8 {[%clk 0:02:50]} 15. Kb1 {[%clk 0:02:32]}  O-O {[%clk 0:02:47]} 16. g4 {[%clk 0:02:33]}  d5 {[%clk 0:02:46]} 17. g5 {[%clk 0:02:31]}  hxg5 {[%clk 0:02:44]} 18. Bxg5 {[%clk 0:02:32]}  dxe4 {[%clk 0:02:41]} 19. fxe4 {[%clk 0:02:30]}  Rfd8 {[%clk 0:02:29]} 20. Rhg1 {[%clk 0:02:26]}  Qb6 {[%clk 0:02:12]} 21. Qg2 {[%clk 0:01:28]}  g6 {[%clk 0:01:40]} 22. Nxc6 {[%clk 0:01:27]}  Rxd1+ {[%clk 0:01:37]} 23. Rxd1 {[%clk 0:01:27]}  Rxc6 {[%clk 0:01:27]} 24. Qf3 {[%clk 0:01:13]}  e5 {[%clk 0:01:15]} 25. Nd5 {[%clk 0:00:47]}  Nxd5 {[%clk 0:00:55]} 26. exd5 {[%clk 0:00:48]}  Rxc2 {[%clk 0:00:38]} 27. Kxc2 {[%clk 0:00:45]}  Bxg5 {[%clk 0:00:38]} 28. d6 {[%clk 0:00:42]}  Kg7 {[%clk 0:00:19]} 29. Kb1 {[%clk 0:00:33]}  e4 {[%clk 0:00:11]} 30. Qxe4 {[%clk 0:00:21]}  Bf6 {[%clk 0:00:11]} 31. Qe2 {[%clk 0:00:22]}  a5 {[%clk 0:00:10]} 32. d7 {[%clk 0:00:21]}  a4 {[%clk 0:00:11]} 33. a3 {[%clk 0:00:22]}  Qd8 {[%clk 0:00:09]} 34. Qc2 {[%clk 0:00:21]}  b5 {[%clk 0:00:09]} 35. Qc6 {[%clk 0:00:20]}  Qb8 {[%clk 0:00:06]} 36. Qxf6+ {[%clk 0:00:18]}  Kxf6 {[%clk 0:00:06]} 37. d8=Q+ {[%clk 0:00:19]}  Qxd8 {[%clk 0:00:07]} 38. Rxd8 {[%clk 0:00:20]}  Ke7 {[%clk 0:00:07]} 39. Rb8 {[%clk 0:00:21]} 1-0


[Site "https://www.chess.com"]

[Event "Titled Tuesday Blitz July 11 Early 2023"]
[White "Oparin, Grigoriy"]
[Black "Nazari, Arad"]
[WhiteFideId "24125890"]
[BlackFideId "12577324"]
[WhiteElo "2954"]
[BlackElo "2727"]
[Result "1/2-1/2"]
[Round "6"]
[TimeControl "180+2"]
[Date "2023.07.11"]
[WhiteClock "0:00:11"]
[BlackClock "0:00:09"]
[Board "14"]

1. c4 {[%clk 0:02:49]}  c5 {[%clk 0:02:59]} 2. Nf3 {[%clk 0:02:49]}  Nc6 {[%clk 0:02:59]} 3. d4 {[%clk 0:02:50]}  cxd4 {[%clk 0:03:00]} 4. Nxd4 {[%clk 0:02:50]}  g6 {[%clk 0:03:00]} 5. e4 {[%clk 0:02:50]}  Bg7 {[%clk 0:03:01]} 6. Nc2 {[%clk 0:02:48]}  Nf6 {[%clk 0:02:55]} 7. Nc3 {[%clk 0:02:48]}  O-O {[%clk 0:02:55]} 8. Be2 {[%clk 0:02:48]}  a5 {[%clk 0:02:44]} 9. O-O {[%clk 0:02:47]}  d6 {[%clk 0:02:45]} 10. Be3 {[%clk 0:02:40]}  a4 {[%clk 0:02:43]} 11. Rc1 {[%clk 0:02:40]}  Qa5 {[%clk 0:02:34]} 12. Na3 {[%clk 0:02:39]}  Be6 {[%clk 0:02:25]} 13. Nab5 {[%clk 0:02:35]}  Rfc8 {[%clk 0:02:20]} 14. Nd5 {[%clk 0:02:20]}  Nd7 {[%clk 0:01:43]} 15. Nbc7 {[%clk 0:01:26]}  Bxd5 {[%clk 0:01:17]} 16. Nxd5 {[%clk 0:01:27]}  Bxb2 {[%clk 0:01:13]} 17. Rb1 {[%clk 0:01:27]}  a3 {[%clk 0:01:14]} 18. Bg4 {[%clk 0:01:08]}  e6 {[%clk 0:00:23]} 19. Bh3 {[%clk 0:01:08]}  Rd8 {[%clk 0:00:16]} 20. Nf4 {[%clk 0:01:04]}  Nde5 {[%clk 0:00:14]} 21. Qe2 {[%clk 0:00:56]}  Qa4 {[%clk 0:00:15]} 22. Nxe6 {[%clk 0:00:50]}  fxe6 {[%clk 0:00:13]} 23. Bxe6+ {[%clk 0:00:51]}  Kg7 {[%clk 0:00:14]} 24. f4 {[%clk 0:00:50]}  Nf7 {[%clk 0:00:11]} 25. Rbd1 {[%clk 0:00:33]}  Bf6 {[%clk 0:00:08]} 26. g4 {[%clk 0:00:24]}  Re8 {[%clk 0:00:08]} 27. Bd5 {[%clk 0:00:22]}  g5 {[%clk 0:00:07]} 28. Bxf7 {[%clk 0:00:17]}  gxf4 {[%clk 0:00:06]} 29. Bxe8 {[%clk 0:00:17]}  fxe3 {[%clk 0:00:06]} 30. Bxc6 {[%clk 0:00:17]}  Qxc6 {[%clk 0:00:07]} 31. Qxe3 {[%clk 0:00:14]}  Qxc4 {[%clk 0:00:07]} 32. g5 {[%clk 0:00:14]}  Be5 {[%clk 0:00:08]} 33. Rf2 {[%clk 0:00:10]}  Re8 {[%clk 0:00:06]} 34. Kg2 {[%clk 0:00:10]}  Qc6 {[%clk 0:00:05]} 35. Rdf1 {[%clk 0:00:10]}  Bb2 {[%clk 0:00:06]} 36. Rf7+ {[%clk 0:00:09]}  Kg8 {[%clk 0:00:06]} 37. R1f4 {[%clk 0:00:09]}  Qc2+ {[%clk 0:00:06]} 38. Kh3 {[%clk 0:00:09]}  Be5 {[%clk 0:00:05]} 39. Rf2 {[%clk 0:00:09]}  Qc4 {[%clk 0:00:05]} 40. Qf3 {[%clk 0:00:09]}  Qe6+ {[%clk 0:00:06]} 41. Kg2 {[%clk 0:00:09]}  Bd4 {[%clk 0:00:04]} 42. Rf1 {[%clk 0:00:08]}  Qxe4 {[%clk 0:00:04]} 43. Qxe4 {[%clk 0:00:08]}  Rxe4 {[%clk 0:00:04]} 44. Rxb7 {[%clk 0:00:08]}  Re2+ {[%clk 0:00:05]} 45. Kf3 {[%clk 0:00:08]}  Rxa2 {[%clk 0:00:05]} 46. Rc1 {[%clk 0:00:08]}  Bc5 {[%clk 0:00:06]} 47. Re1 {[%clk 0:00:08]}  Rf2+ {[%clk 0:00:06]} 48. Kg4 {[%clk 0:00:07]}  Rf8 {[%clk 0:00:04]} 49. Re2 {[%clk 0:00:06]}  Ra8 {[%clk 0:00:04]} 50. Ra2 {[%clk 0:00:06]}  Bd4 {[%clk 0:00:05]} 51. h4 {[%clk 0:00:06]}  Bb2 {[%clk 0:00:05]} 52. Rbxb2 {[%clk 0:00:07]}  Ra4+ {[%clk 0:00:03]} 53. Kh5 {[%clk 0:00:07]}  axb2 {[%clk 0:00:04]} 54. Rxb2 {[%clk 0:00:08]}  Rd4 {[%clk 0:00:03]} 55. Rb8+ {[%clk 0:00:08]}  Kg7 {[%clk 0:00:03]} 56. Rb7+ {[%clk 0:00:09]}  Kg8 {[%clk 0:00:04]} 57. Rd7 {[%clk 0:00:09]}  Kh8 {[%clk 0:00:04]} 58. Rf7 {[%clk 0:00:08]}  Kg8 {[%clk 0:00:04]} 59. Rf1 {[%clk 0:00:08]}  Kg7 {[%clk 0:00:05]} 60. Rh1 {[%clk 0:00:08]}  Kg8 {[%clk 0:00:04]} 61. Kh6 {[%clk 0:00:08]}  Re4 {[%clk 0:00:03]} 62. Rh2 {[%clk 0:00:09]}  Re6+ {[%clk 0:00:04]} 63. Kh5 {[%clk 0:00:09]}  Re4 {[%clk 0:00:04]} 64. Rd2 {[%clk 0:00:08]}  Re6 {[%clk 0:00:05]} 65. Kg4 {[%clk 0:00:09]}  Re4+ {[%clk 0:00:05]} 66. Kh5 {[%clk 0:00:09]}  Re6 {[%clk 0:00:05]} 67. Rd4 {[%clk 0:00:09]}  Kg7 {[%clk 0:00:05]} 68. Ra4 {[%clk 0:00:10]}  Re7 {[%clk 0:00:04]} 69. Ra5 {[%clk 0:00:09]}  Rd7 {[%clk 0:00:03]} 70. Rd5 {[%clk 0:00:09]}  Kf7 {[%clk 0:00:04]} 71. Kh6 {[%clk 0:00:09]}  Ke6 {[%clk 0:00:03]} 72. Rd1 {[%clk 0:00:08]}  d5 {[%clk 0:00:04]} 73. Re1+ {[%clk 0:00:08]}  Kf5 {[%clk 0:00:04]} 74. h5 {[%clk 0:00:09]}  d4 {[%clk 0:00:04]} 75. Rf1+ {[%clk 0:00:09]}  Ke4 {[%clk 0:00:05]} 76. Re1+ {[%clk 0:00:07]}  Kf3 {[%clk 0:00:05]} 77. g6 {[%clk 0:00:07]}  hxg6 {[%clk 0:00:06]} 78. hxg6 {[%clk 0:00:08]}  d3 {[%clk 0:00:06]} 79. Rd1 {[%clk 0:00:08]}  Ke2 {[%clk 0:00:06]} 80. Rh1 {[%clk 0:00:08]}  d2 {[%clk 0:00:07]} 81. Rh2+ {[%clk 0:00:09]}  Kd3 {[%clk 0:00:08]} 82. Rxd2+ {[%clk 0:00:10]}  Kxd2 {[%clk 0:00:08]} 83. g7 {[%clk 0:00:11]}  Rxg7 {[%clk 0:00:09]} 84. Kxg7 {[%clk 0:00:11]} 1/2-1/2


[Site "https://www.chess.com"]

[Event "Titled Tuesday Blitz July 11 Early 2023"]
[White "Wagner, Dennis"]
[Black "Pranav, V"]
[WhiteFideId "24650684"]
[BlackFideId "25060783"]
[WhiteElo "2724"]
[BlackElo "2943"]
[Result "0-1"]
[Round "6"]
[TimeControl "180+2"]
[Date "2023.07.11"]
[WhiteClock "0:00:02"]
[BlackClock "0:01:27"]
[Board "17"]

1. d4 {[%clk 0:03:00]}  Nf6 {[%clk 0:03:00]} 2. Nf3 {[%clk 0:03:00]}  b6 {[%clk 0:02:59]} 3. c4 {[%clk 0:02:57]}  Bb7 {[%clk 0:03:00]} 4. g3 {[%clk 0:02:57]}  e6 {[%clk 0:03:00]} 5. Bg2 {[%clk 0:02:58]}  Be7 {[%clk 0:03:00]} 6. O-O {[%clk 0:02:58]}  O-O {[%clk 0:03:01]} 7. d5 {[%clk 0:02:57]}  exd5 {[%clk 0:02:58]} 8. Nh4 {[%clk 0:02:57]}  Re8 {[%clk 0:02:58]} 9. cxd5 {[%clk 0:02:56]}  Bf8 {[%clk 0:02:52]} 10. Nc3 {[%clk 0:02:54]}  Na6 {[%clk 0:02:49]} 11. Nf5 {[%clk 0:02:29]}  Nc5 {[%clk 0:02:47]} 12. Qd4 {[%clk 0:02:30]}  d6 {[%clk 0:02:42]} 13. Bg5 {[%clk 0:02:28]}  Re5 {[%clk 0:02:40]} 14. e4 {[%clk 0:02:07]}  h6 {[%clk 0:02:36]} 15. Bf4 {[%clk 0:01:49]}  Re8 {[%clk 0:02:35]} 16. Rfe1 {[%clk 0:01:46]}  Ng4 {[%clk 0:02:28]} 17. b4 {[%clk 0:01:35]}  Nd7 {[%clk 0:02:28]} 18. Rac1 {[%clk 0:01:17]}  a6 {[%clk 0:02:20]} 19. h3 {[%clk 0:01:10]}  Nge5 {[%clk 0:02:19]} 20. Be3 {[%clk 0:01:09]}  c5 {[%clk 0:02:07]} 21. dxc6 {[%clk 0:00:53]}  Nxc6 {[%clk 0:02:04]} 22. Qd2 {[%clk 0:00:46]}  Nf6 {[%clk 0:02:04]} 23. a3 {[%clk 0:00:25]}  Ne5 {[%clk 0:02:03]} 24. Nd5 {[%clk 0:00:23]}  Nxd5 {[%clk 0:01:59]} 25. exd5 {[%clk 0:00:24]}  Qf6 {[%clk 0:01:58]} 26. Nd4 {[%clk 0:00:21]}  b5 {[%clk 0:01:58]} 27. Nc6 {[%clk 0:00:05]}  Nc4 {[%clk 0:01:58]} 28. Qd3 {[%clk 0:00:02]}  Ne5 {[%clk 0:01:57]} 29. Qd2 {[%clk 0:00:02]}  Nf3+ {[%clk 0:01:55]} 30. Bxf3 {[%clk 0:00:02]}  Qxf3 {[%clk 0:01:55]} 31. Bf4 {[%clk 0:00:02]}  g5 {[%clk 0:01:53]} 32. Rxe8 {[%clk 0:00:01]}  Rxe8 {[%clk 0:01:54]} 33. Be3 {[%clk 0:00:02]}  Bc8 {[%clk 0:01:52]} 34. Qd1 {[%clk 0:00:02]}  Qe4 {[%clk 0:01:49]} 35. g4 {[%clk 0:00:02]}  f5 {[%clk 0:01:46]} 36. gxf5 {[%clk 0:00:02]}  Bxf5 {[%clk 0:01:47]} 37. Kh2 {[%clk 0:00:02]}  Bg7 {[%clk 0:01:39]} 38. Bd4 {[%clk 0:00:02]}  Qf4+ {[%clk 0:01:38]} 39. Kg1 {[%clk 0:00:02]}  Bf8 {[%clk 0:01:27]} 40. Be3 {[%clk 0:00:02]}  Qh4 {[%clk 0:01:26]} 41. Qf1 {[%clk 0:00:01]}  Bxh3 {[%clk 0:01:26]} 42. Qd3 {[%clk 0:00:02]}  Qg4+ {[%clk 0:01:26]} 43. Kh2 {[%clk 0:00:02]}  Qg2# {[%clk 0:01:27]} 0-1


[Site "https://www.chess.com"]